[Event "Titled Tuesday Blitz June 15 2021"]
[White "Erdogdu, Mert"]
[Black "Khumalo, Keith"]
[WhiteFideId "6301495"]
[BlackFideId "14319470"]
[WhiteElo "2485"]
[BlackElo "1992"]
[Result "0-1"]
[Round "02"]
[TimeControl "180+1"]
[Date "2021.06.15"]
[WhiteClock "0:00:14"]
[BlackClock "0:01:20"]

1. e4 {[%clk 0:03:00]}  c5 {[%clk 0:02:59]} 2. Nf3 {[%clk 0:02:59]}  d6 {[%clk 0:02:59]} 3. d4 {[%clk 0:03:00]}  cxd4 {[%clk 0:02:58]} 4. Nxd4 {[%clk 0:03:00]}  Nf6 {[%clk 0:02:59]} 5. Nc3 {[%clk 0:03:01]}  a6 {[%clk 0:03:00]} 6. Be3 {[%clk 0:03:01]}  e5 {[%clk 0:03:00]} 7. Nb3 {[%clk 0:03:01]}  Be6 {[%clk 0:03:00]} 8. f3 {[%clk 0:03:01]}  Be7 {[%clk 0:03:01]} 9. Qd2 {[%clk 0:03:02]}  Nbd7 {[%clk 0:03:01]} 10. O-O-O {[%clk 0:03:02]}  O-O {[%clk 0:03:01]} 11. g4 {[%clk 0:03:02]}  b5 {[%clk 0:03:02]} 12. g5 {[%clk 0:03:00]}  b4 {[%clk 0:03:02]} 13. Ne2 {[%clk 0:02:59]}  Ne8 {[%clk 0:02:59]} 14. f4 {[%clk 0:02:58]}  exf4 {[%clk 0:02:59]} 15. Nxf4 {[%clk 0:02:57]}  Bxb3 {[%clk 0:02:50]} 16. cxb3 {[%clk 0:02:50]}  Qa5 {[%clk 0:02:49]} 17. Kb1 {[%clk 0:02:48]}  Bxg5 {[%clk 0:02:48]} 18. Rg1 {[%clk 0:02:33]}  Bh6 {[%clk 0:02:39]} 19. Bc4 {[%clk 0:02:30]}  Ne5 {[%clk 0:02:38]} 20. Bd5 {[%clk 0:02:25]}  Rc8 {[%clk 0:02:38]} 21. Nh5 {[%clk 0:02:23]}  Bxe3 {[%clk 0:02:36]} 22. Qxe3 {[%clk 0:02:24]}  Qc5 {[%clk 0:02:37]} 23. Qd2 {[%clk 0:01:49]}  g6 {[%clk 0:02:36]} 24. Rc1 {[%clk 0:01:45]}  Qb6 {[%clk 0:02:33]} 25. Qh6 {[%clk 0:00:44]}  Qd4 {[%clk 0:02:14]} 26. Nf4 {[%clk 0:00:32]}  Rxc1+ {[%clk 0:02:00]} 27. Rxc1 {[%clk 0:00:31]}  Qe3 {[%clk 0:02:00]} 28. Qh4 {[%clk 0:00:26]}  Nf3 {[%clk 0:01:58]} 29. Qg3 {[%clk 0:00:25]}  Nd2+ {[%clk 0:01:58]} 30. Kc2 {[%clk 0:00:24]}  Qxg3 {[%clk 0:01:55]} 31. hxg3 {[%clk 0:00:25]}  Nf3 {[%clk 0:01:55]} 32. Kd3 {[%clk 0:00:24]}  Nf6 {[%clk 0:01:55]} 33. Ke3 {[%clk 0:00:20]}  Ne5 {[%clk 0:01:54]} 34. Rc7 {[%clk 0:00:19]}  g5 {[%clk 0:01:51]} 35. Nd3 {[%clk 0:00:18]}  Nxd5+ {[%clk 0:01:51]} 36. exd5 {[%clk 0:00:19]}  Re8 {[%clk 0:01:50]} 37. Nxb4 {[%clk 0:00:18]}  Nc4+ {[%clk 0:01:47]} 38. Kd4 {[%clk 0:00:17]}  Nxb2 {[%clk 0:01:47]} 39. Nc6 {[%clk 0:00:17]}  Re1 {[%clk 0:01:41]} 40. Ne7+ {[%clk 0:00:17]}  Kg7 {[%clk 0:01:41]} 41. Nf5+ {[%clk 0:00:18]}  Kf6 {[%clk 0:01:42]} 42. Nxd6 {[%clk 0:00:18]}  Rd1+ {[%clk 0:01:42]} 43. Kc5 {[%clk 0:00:18]}  Nd3+ {[%clk 0:01:42]} 44. Kb6 {[%clk 0:00:18]}  Ne5 {[%clk 0:01:42]} 45. Ne8+ {[%clk 0:00:17]}  Kf5 {[%clk 0:01:38]} 46. d6 {[%clk 0:00:17]}  h5 {[%clk 0:01:37]} 47. Rc5 {[%clk 0:00:15]}  f6 {[%clk 0:01:35]} 48. Kc7 {[%clk 0:00:16]}  Ke6 {[%clk 0:01:35]} 49. Ng7+ {[%clk 0:00:16]}  Kf7 {[%clk 0:01:35]} 50. Nf5 {[%clk 0:00:16]}  Ke6 {[%clk 0:01:35]} 51. Ng7+ {[%clk 0:00:16]}  Kf7 {[%clk 0:01:36]} 52. Nxh5 {[%clk 0:00:17]}  Rd3 {[%clk 0:01:32]} 53. b4 {[%clk 0:00:15]}  Rd4 {[%clk 0:01:32]} 54. a3 {[%clk 0:00:15]}  Ke6 {[%clk 0:01:32]} 55. Ng7+ {[%clk 0:00:15]}  Kf7 {[%clk 0:01:32]} 56. Nf5 {[%clk 0:00:15]}  Rd1 {[%clk 0:01:32]} 57. Ne3 {[%clk 0:00:15]}  Rd3 {[%clk 0:01:32]} 58. Nd5 {[%clk 0:00:15]}  Ke6 {[%clk 0:01:32]} 59. Nb6 {[%clk 0:00:15]}  Rxd6 {[%clk 0:01:31]} 60. Nc4 {[%clk 0:00:15]}  Rd7+ {[%clk 0:01:31]} 61. Kb6 {[%clk 0:00:15]}  Nf7 {[%clk 0:01:27]} 62. Kxa6 {[%clk 0:00:15]}  Rd3 {[%clk 0:01:27]} 63. b5 {[%clk 0:00:15]}  Rxg3 {[%clk 0:01:26]} 64. b6 {[%clk 0:00:14]}  Nd8 {[%clk 0:01:24]} 65. Rc8 {[%clk 0:00:14]}  Kd7 {[%clk 0:01:20]} 66. b7 {[%clk 0:00:14]}  Nxb7 {[%clk 0:01:20]} 67. Kxb7 {[%clk 0:00:15]}  Rb3+ {[%clk 0:01:19]} 68. Ka6 {[%clk 0:00:14]}  Kxc8 {[%clk 0:01:19]} 69. a4 {[%clk 0:00:14]}  Rb4 {[%clk 0:01:19]} 70. Nd6+ {[%clk 0:00:14]}  Kd7 {[%clk 0:01:20]} 0-1


[Site "https://www.chess.com"]

[Event "Titled Tuesday Blitz June 15 2021"]
[White "Flores Quillas, Diego Saul Rodri"]
[Black "Babazada, Khazar"]
[WhiteFideId "3822508"]
[BlackFideId "13413554"]
[WhiteElo "2071"]
[BlackElo "2344"]
[Result "1-0"]
[Round "02"]
[TimeControl "180+1"]
[Date "2021.06.15"]
[WhiteClock "0:00:17"]
[BlackClock "0:02:22"]

1. e4 {[%clk 0:03:00]}  c6 {[%clk 0:02:59]} 2. d4 {[%clk 0:02:59]}  d5 {[%clk 0:02:59]} 3. Nc3 {[%clk 0:02:56]}  g6 {[%clk 0:03:00]} 4. e5 {[%clk 0:02:47]}  Bg7 {[%clk 0:02:59]} 5. f4 {[%clk 0:02:43]}  h5 {[%clk 0:02:59]} 6. Nf3 {[%clk 0:02:34]}  Nh6 {[%clk 0:02:59]} 7. Be3 {[%clk 0:02:32]}  Bg4 {[%clk 0:02:59]} 8. h3 {[%clk 0:02:25]}  Nf5 {[%clk 0:02:59]} 9. Bf2 {[%clk 0:02:25]}  Bxf3 {[%clk 0:02:59]} 10. Qxf3 {[%clk 0:02:26]}  e6 {[%clk 0:02:59]} 11. Bd3 {[%clk 0:02:21]}  h4 {[%clk 0:02:58]} 12. Ne2 {[%clk 0:02:14]}  Nd7 {[%clk 0:02:58]} 13. b3 {[%clk 0:02:06]}  Rc8 {[%clk 0:02:58]} 14. O-O {[%clk 0:02:02]}  c5 {[%clk 0:02:57]} 15. dxc5 {[%clk 0:02:01]}  Nxc5 {[%clk 0:02:58]} 16. Bb5+ {[%clk 0:02:01]}  Kf8 {[%clk 0:02:58]} 17. Bxc5+ {[%clk 0:01:43]}  Rxc5 {[%clk 0:02:59]} 18. Bd3 {[%clk 0:01:44]}  a6 {[%clk 0:02:55]} 19. Rfd1 {[%clk 0:01:42]}  Qb6 {[%clk 0:02:54]} 20. Qf2 {[%clk 0:01:41]}  Qc7 {[%clk 0:02:53]} 21. c4 {[%clk 0:01:29]}  dxc4 {[%clk 0:02:49]} 22. Bxc4 {[%clk 0:01:28]}  b5 {[%clk 0:02:50]} 23. Bd3 {[%clk 0:01:23]}  Kg8 {[%clk 0:02:50]} 24. Rac1 {[%clk 0:01:02]}  Bf8 {[%clk 0:02:50]} 25. Kh2 {[%clk 0:00:55]}  Kg7 {[%clk 0:02:50]} 26. Bxf5 {[%clk 0:00:44]}  gxf5 {[%clk 0:02:48]} 27. g3 {[%clk 0:00:42]}  Be7 {[%clk 0:02:48]} 28. gxh4 {[%clk 0:00:40]}  Rxh4 {[%clk 0:02:25]} 29. Rg1+ {[%clk 0:00:27]}  Kf8 {[%clk 0:02:25]} 30. Qg2 {[%clk 0:00:26]}  Ke8 {[%clk 0:02:23]} 31. Qa8+ {[%clk 0:00:19]}  Kd7 {[%clk 0:02:22]} 32. Rgd1+ {[%clk 0:00:17]} 1-0


[Site "https://www.chess.com"]

[Event "Titled Tuesday Blitz June 15 2021"]
[White "Gelman, Alexander"]
[Black "Zhigalko, Sergei"]
[WhiteFideId "4118316"]
[BlackFideId "13502956"]
[WhiteElo "2375"]
[BlackElo "2662"]
[Result "0-1"]
[Round "02"]
[TimeControl "180+1"]
[Date "2021.06.15"]
[WhiteClock "0:00:01"]
[BlackClock "0:00:03"]

1. d4 {[%clk 0:03:00]}  Nf6 {[%clk 0:03:00]} 2. Nc3 {[%clk 0:03:01]}  d5 {[%clk 0:03:00]} 3. Bf4 {[%clk 0:03:00]}  a6 {[%clk 0:03:00]} 4. e3 {[%clk 0:03:01]}  e6 {[%clk 0:02:59]} 5. g4 {[%clk 0:03:01]}  Bb4 {[%clk 0:02:57]} 6. Bg2 {[%clk 0:02:49]}  O-O {[%clk 0:02:30]} 7. g5 {[%clk 0:02:43]}  Ne4 {[%clk 0:02:23]} 8. Bxe4 {[%clk 0:02:32]}  dxe4 {[%clk 0:02:02]} 9. Ne2 {[%clk 0:02:24]}  b5 {[%clk 0:02:02]} 10. a3 {[%clk 0:02:24]}  Bxc3+ {[%clk 0:01:53]} 11. Nxc3 {[%clk 0:02:23]}  Bb7 {[%clk 0:01:51]} 12. Qg4 {[%clk 0:02:19]}  Nd7 {[%clk 0:01:43]} 13. h4 {[%clk 0:02:10]}  Qe7 {[%clk 0:00:45]} 14. Qg3 {[%clk 0:02:02]}  e5 {[%clk 0:00:36]} 15. dxe5 {[%clk 0:01:54]}  Nc5 {[%clk 0:00:22]} 16. e6 {[%clk 0:01:35]}  Nxe6 {[%clk 0:00:21]} 17. Be5 {[%clk 0:01:36]}  Rfe8 {[%clk 0:00:13]} 18. O-O-O {[%clk 0:01:25]}  b4 {[%clk 0:00:11]} 19. axb4 {[%clk 0:01:20]}  Qxb4 {[%clk 0:00:12]} 20. h5 {[%clk 0:01:13]}  Rab8 {[%clk 0:00:13]} 21. g6 {[%clk 0:01:08]}  fxg6 {[%clk 0:00:14]} 22. hxg6 {[%clk 0:00:19]}  h6 {[%clk 0:00:14]} 23. Rh5 {[%clk 0:00:12]}  Bc6 {[%clk 0:00:07]} 24. b3 {[%clk 0:00:12]}  Qa3+ {[%clk 0:00:06]} 25. Kb1 {[%clk 0:00:08]}  Nc5 {[%clk 0:00:02]} 26. Bxg7 {[%clk 0:00:01]}  Nxb3 {[%clk 0:00:02]} 27. cxb3 {[%clk 0:00:01]}  Qxb3+ {[%clk 0:00:02]} 28. Kc1 {[%clk 0:00:01]}  Qb2# {[%clk 0:00:03]} 0-1


[Site "https://www.chess.com"]

[Event "Titled Tuesday Blitz June 15 2021"]
[White "Gunina, Valentina"]
[Black "deribas12345"]
[WhiteFideId "4167570"]
[WhiteElo "2399"]
[BlackElo "2530"]
[Result "1-0"]
[Round "02"]
[TimeControl "180+1"]
[Date "2021.06.15"]
[WhiteClock "0:00:58"]
[BlackClock "0:00:29"]

1. d4 {[%clk 0:03:00]}  Nf6 {[%clk 0:02:55]} 2. c4 {[%clk 0:03:00]}  d6 {[%clk 0:02:56]} 3. Nc3 {[%clk 0:02:59]}  Bf5 {[%clk 0:02:56]} 4. Nf3 {[%clk 0:02:59]}  h6 {[%clk 0:02:52]} 5. g3 {[%clk 0:02:59]}  c6 {[%clk 0:02:48]} 6. Bg2 {[%clk 0:02:59]}  Nbd7 {[%clk 0:02:49]} 7. O-O {[%clk 0:02:59]}  e5 {[%clk 0:02:48]} 8. b3 {[%clk 0:02:57]}  Be7 {[%clk 0:02:47]} 9. Bb2 {[%clk 0:02:57]}  O-O {[%clk 0:02:41]} 10. Qd2 {[%clk 0:02:57]}  Qc7 {[%clk 0:02:40]} 11. Rfe1 {[%clk 0:02:55]}  e4 {[%clk 0:02:19]} 12. Nh4 {[%clk 0:02:49]}  Bh7 {[%clk 0:02:19]} 13. Bh3 {[%clk 0:02:44]}  Qa5 {[%clk 0:02:06]} 14. Nxe4 {[%clk 0:02:35]}  Qh5 {[%clk 0:01:55]} 15. Nxf6+ {[%clk 0:02:31]}  Nxf6 {[%clk 0:01:56]} 16. Bg2 {[%clk 0:02:30]}  Ne4 {[%clk 0:01:51]} 17. Bxe4 {[%clk 0:02:00]}  Bxe4 {[%clk 0:01:52]} 18. Ng2 {[%clk 0:01:59]}  d5 {[%clk 0:01:33]} 19. f3 {[%clk 0:01:55]}  Bh7 {[%clk 0:01:33]} 20. cxd5 {[%clk 0:01:44]}  cxd5 {[%clk 0:01:31]} 21. Qa5 {[%clk 0:01:40]}  Bg5 {[%clk 0:01:23]} 22. Qxd5 {[%clk 0:01:32]}  Rac8 {[%clk 0:01:22]} 23. Ba3 {[%clk 0:01:16]}  Rfd8 {[%clk 0:01:17]} 24. Qxb7 {[%clk 0:01:15]}  Bd2 {[%clk 0:01:08]} 25. Red1 {[%clk 0:01:10]}  Bc3 {[%clk 0:01:04]} 26. Rac1 {[%clk 0:01:08]}  Bxd4+ {[%clk 0:01:04]} 27. Rxd4 {[%clk 0:01:03]}  Rxc1+ {[%clk 0:01:04]} 28. Bxc1 {[%clk 0:01:03]}  Re8 {[%clk 0:00:39]} 29. Qd7 {[%clk 0:01:03]}  f6 {[%clk 0:00:35]} 30. Nf4 {[%clk 0:00:59]}  Qc5 {[%clk 0:00:34]} 31. Qxe8+ {[%clk 0:00:59]}  Qf8 {[%clk 0:00:29]} 32. Qe6+ {[%clk 0:00:58]} 1-0


[Site "https://www.chess.com"]

[Event "Titled Tuesday Blitz June 15 2021"]
[White "Hansen, Eric"]
[Black "Mezentsev, Ivan"]
[WhiteFideId "2606771"]
[BlackFideId "13706195"]
[WhiteElo "2568"]
[BlackElo "2295"]
[Result "1-0"]
[Round "02"]
[TimeControl "180+1"]
[Date "2021.06.15"]
[WhiteClock "0:01:37"]
[BlackClock "0:00:05"]

1. b3 {[%clk 0:03:00]}  Nf6 {[%clk 0:02:52]} 2. Bb2 {[%clk 0:03:00]}  d5 {[%clk 0:02:51]} 3. e3 {[%clk 0:02:59]}  Bf5 {[%clk 0:02:51]} 4. h3 {[%clk 0:02:56]}  h6 {[%clk 0:02:48]} 5. Nf3 {[%clk 0:02:47]}  e6 {[%clk 0:02:47]} 6. Rg1 {[%clk 0:02:45]}  a6 {[%clk 0:02:31]} 7. g4 {[%clk 0:02:44]}  Bh7 {[%clk 0:02:30]} 8. g5 {[%clk 0:02:43]}  hxg5 {[%clk 0:02:30]} 9. Nxg5 {[%clk 0:02:44]}  Bf5 {[%clk 0:02:30]} 10. d3 {[%clk 0:02:42]}  c5 {[%clk 0:02:28]} 11. Nd2 {[%clk 0:02:41]}  Nc6 {[%clk 0:02:27]} 12. e4 {[%clk 0:02:41]}  dxe4 {[%clk 0:02:15]} 13. dxe4 {[%clk 0:02:41]}  Bh7 {[%clk 0:02:15]} 14. e5 {[%clk 0:02:23]}  Nd5 {[%clk 0:01:59]} 15. Qh5 {[%clk 0:02:22]}  Qd7 {[%clk 0:01:33]} 16. Nxh7 {[%clk 0:02:19]}  O-O-O {[%clk 0:01:33]} 17. Nxf8 {[%clk 0:02:19]}  Rdxf8 {[%clk 0:01:13]} 18. Qf3 {[%clk 0:02:17]}  Nd4 {[%clk 0:01:09]} 19. Qe4 {[%clk 0:01:52]}  f5 {[%clk 0:00:42]} 20. exf6 {[%clk 0:01:52]}  Nxf6 {[%clk 0:00:42]} 21. Qd3 {[%clk 0:01:53]}  Rd8 {[%clk 0:00:26]} 22. O-O-O {[%clk 0:01:50]}  Qc6 {[%clk 0:00:24]} 23. Bg2 {[%clk 0:01:45]}  Qc7 {[%clk 0:00:19]} 24. Qe3 {[%clk 0:01:38]}  Nd5 {[%clk 0:00:07]} 25. Bxd5 {[%clk 0:01:37]}  Rxd5 {[%clk 0:00:07]} 26. Bxd4 {[%clk 0:01:37]}  cxd4 {[%clk 0:00:05]} 27. Qxe6+ {[%clk 0:01:37]} 1-0


[Site "https://www.chess.com"]

[Event "Titled Tuesday Blitz June 15 2021"]
[White "Isajevsky, Anton"]
[Black "Murzin, Volodar"]
[WhiteFideId "4142500"]
[BlackFideId "44155573"]
[WhiteElo "2510"]
[BlackElo "2541"]
[Result "0-1"]
[Round "02"]
[TimeControl "180+1"]
[Date "2021.06.15"]
[WhiteClock "0:00:18"]
[BlackClock "0:00:12"]

1. c4 {[%clk 0:03:00]}  Nf6 {[%clk 0:02:59]} 2. Nc3 {[%clk 0:03:00]}  g6 {[%clk 0:02:59]} 3. g3 {[%clk 0:02:59]}  Bg7 {[%clk 0:02:59]} 4. Bg2 {[%clk 0:02:59]}  O-O {[%clk 0:02:59]} 5. e3 {[%clk 0:02:58]}  d6 {[%clk 0:02:59]} 6. Nge2 {[%clk 0:02:58]}  Nc6 {[%clk 0:02:58]} 7. O-O {[%clk 0:02:57]}  Bf5 {[%clk 0:02:56]} 8. d3 {[%clk 0:02:46]}  Qd7 {[%clk 0:02:49]} 9. Re1 {[%clk 0:02:46]}  e5 {[%clk 0:02:35]} 10. b3 {[%clk 0:02:24]}  Bh3 {[%clk 0:02:27]} 11. Bh1 {[%clk 0:02:24]}  Ng4 {[%clk 0:02:23]} 12. Nd5 {[%clk 0:02:11]}  f5 {[%clk 0:02:16]} 13. Bb2 {[%clk 0:02:09]}  Nd8 {[%clk 0:02:00]} 14. f3 {[%clk 0:01:52]}  Nf6 {[%clk 0:01:44]} 15. f4 {[%clk 0:01:34]}  Ng4 {[%clk 0:01:34]} 16. Qd2 {[%clk 0:01:30]}  c6 {[%clk 0:01:31]} 17. Ndc3 {[%clk 0:01:29]}  Ne6 {[%clk 0:01:31]} 18. Bg2 {[%clk 0:01:26]}  Bxg2 {[%clk 0:01:22]} 19. Kxg2 {[%clk 0:01:27]}  Rae8 {[%clk 0:01:05]} 20. h3 {[%clk 0:01:25]}  Nf6 {[%clk 0:01:04]} 21. Rad1 {[%clk 0:01:16]}  exf4 {[%clk 0:00:28]} 22. exf4 {[%clk 0:01:05]}  d5 {[%clk 0:00:27]} 23. Ng1 {[%clk 0:00:39]}  dxc4 {[%clk 0:00:19]} 24. dxc4 {[%clk 0:00:35]}  Qxd2+ {[%clk 0:00:18]} 25. Rxd2 {[%clk 0:00:36]}  Nxf4+ {[%clk 0:00:19]} 26. gxf4 {[%clk 0:00:36]}  Rxe1 {[%clk 0:00:19]} 27. Nf3 {[%clk 0:00:30]}  Re3 {[%clk 0:00:15]} 28. Nd1 {[%clk 0:00:26]}  Ree8 {[%clk 0:00:14]} 29. Be5 {[%clk 0:00:24]}  Nh5 {[%clk 0:00:12]} 30. Nc3 {[%clk 0:00:18]}  Nxf4+ {[%clk 0:00:11]} 31. Bxf4 {[%clk 0:00:18]}  Bxc3 {[%clk 0:00:12]} 32. Rd7 {[%clk 0:00:18]}  Rf7 {[%clk 0:00:12]} 0-1


[Site "https://www.chess.com"]

[Event "Titled Tuesday Blitz June 15 2021"]
[White "Iskusnyh, Sergei"]
[Black "Matlakov, Maxim"]
[WhiteFideId "4120027"]
[BlackFideId "4168003"]
[WhiteElo "2492"]
[BlackElo "2760"]
[Result "0-1"]
[Round "02"]
[TimeControl "180+1"]
[Date "2021.06.15"]
[WhiteClock "0:00:09"]
[BlackClock "0:00:40"]

1. d4 {[%clk 0:03:00]}  d5 {[%clk 0:02:58]} 2. c4 {[%clk 0:03:00]}  e6 {[%clk 0:02:59]} 3. Nf3 {[%clk 0:03:00]}  Nd7 {[%clk 0:02:57]} 4. Nbd2 {[%clk 0:02:52]}  f5 {[%clk 0:02:54]} 5. g3 {[%clk 0:02:47]}  c6 {[%clk 0:02:54]} 6. Bg2 {[%clk 0:02:46]}  Ngf6 {[%clk 0:02:50]} 7. O-O {[%clk 0:02:30]}  Bd6 {[%clk 0:02:50]} 8. b3 {[%clk 0:02:28]}  O-O {[%clk 0:02:49]} 9. Bb2 {[%clk 0:02:28]}  Ne4 {[%clk 0:02:47]} 10. Qc2 {[%clk 0:02:24]}  Qf6 {[%clk 0:02:45]} 11. e3 {[%clk 0:02:20]}  g5 {[%clk 0:02:44]} 12. Ne1 {[%clk 0:02:20]}  h5 {[%clk 0:02:42]} 13. Nd3 {[%clk 0:02:19]}  h4 {[%clk 0:02:38]} 14. Nf3 {[%clk 0:01:17]}  hxg3 {[%clk 0:02:37]} 15. hxg3 {[%clk 0:01:16]}  Qh6 {[%clk 0:02:36]} 16. Nfe5 {[%clk 0:01:07]}  Nxe5 {[%clk 0:02:32]} 17. Nxe5 {[%clk 0:01:06]}  Bxe5 {[%clk 0:02:31]} 18. dxe5 {[%clk 0:01:06]}  Rf7 {[%clk 0:02:32]} 19. Bxe4 {[%clk 0:00:58]}  fxe4 {[%clk 0:02:27]} 20. Kg2 {[%clk 0:00:55]}  Qh5 {[%clk 0:02:19]} 21. Qd1 {[%clk 0:00:51]}  Qf3+ {[%clk 0:01:43]} 22. Qxf3 {[%clk 0:00:50]}  exf3+ {[%clk 0:01:44]} 23. Kh3 {[%clk 0:00:36]}  dxc4 {[%clk 0:00:58]} 24. bxc4 {[%clk 0:00:35]}  c5 {[%clk 0:00:59]} 25. Rad1 {[%clk 0:00:33]}  Bd7 {[%clk 0:00:59]} 26. Rh1 {[%clk 0:00:29]}  Ba4 {[%clk 0:00:53]} 27. Rdf1 {[%clk 0:00:16]}  Bc2 {[%clk 0:00:50]} 28. g4 {[%clk 0:00:15]}  Bd3 {[%clk 0:00:47]} 29. Rd1 {[%clk 0:00:14]}  Be2 {[%clk 0:00:47]} 30. Rd6 {[%clk 0:00:13]}  Rh7+ {[%clk 0:00:46]} 31. Kg3 {[%clk 0:00:12]}  Rxh1 {[%clk 0:00:47]} 32. Rxe6 {[%clk 0:00:12]}  Rg1+ {[%clk 0:00:44]} 33. Kh2 {[%clk 0:00:12]}  Rg2+ {[%clk 0:00:44]} 34. Kh3 {[%clk 0:00:12]}  Kf7 {[%clk 0:00:44]} 35. Rf6+ {[%clk 0:00:12]}  Ke7 {[%clk 0:00:44]} 36. Rh6 {[%clk 0:00:12]}  Rxf2 {[%clk 0:00:43]} 37. Bc3 {[%clk 0:00:11]}  Rf1 {[%clk 0:00:42]} 38. Kg3 {[%clk 0:00:10]}  Rg1+ {[%clk 0:00:40]} 39. Kf2 {[%clk 0:00:09]}  Rg2+ {[%clk 0:00:40]} 40. Ke1 {[%clk 0:00:09]}  Bxc4 {[%clk 0:00:40]} 0-1


[Site "https://www.chess.com"]

[Event "Titled Tuesday Blitz June 15 2021"]
[White "Ivanisevic, Ivan"]
[Black "Vovk, Orest"]
[WhiteFideId "912417"]
[BlackFideId "14113490"]
[WhiteElo "2499"]
[BlackElo "2203"]
[Result "1-0"]
[Round "02"]
[TimeControl "180+1"]
[Date "2021.06.15"]
[WhiteClock "0:00:29"]
[BlackClock "0:00:05"]

1. d4 {[%clk 0:03:00]}  Nc6 {[%clk 0:02:55]} 2. c4 {[%clk 0:02:43]}  e5 {[%clk 0:02:54]} 3. d5 {[%clk 0:02:43]}  Nce7 {[%clk 0:02:54]} 4. Nc3 {[%clk 0:02:43]}  Ng6 {[%clk 0:02:53]} 5. a3 {[%clk 0:02:43]}  Bc5 {[%clk 0:02:45]} 6. Nf3 {[%clk 0:02:24]}  a6 {[%clk 0:02:36]} 7. h4 {[%clk 0:02:20]}  d6 {[%clk 0:02:30]} 8. h5 {[%clk 0:02:17]}  Nf8 {[%clk 0:02:29]} 9. b4 {[%clk 0:02:13]}  Ba7 {[%clk 0:02:27]} 10. Qc2 {[%clk 0:02:08]}  h6 {[%clk 0:02:23]} 11. e3 {[%clk 0:01:56]}  Nf6 {[%clk 0:02:21]} 12. Be2 {[%clk 0:01:51]}  N8h7 {[%clk 0:02:19]} 13. Bb2 {[%clk 0:01:49]}  Ng5 {[%clk 0:02:15]} 14. Nh4 {[%clk 0:01:47]}  e4 {[%clk 0:01:57]} 15. O-O-O {[%clk 0:01:42]}  Bd7 {[%clk 0:01:52]} 16. Kb1 {[%clk 0:01:42]}  Qe7 {[%clk 0:01:49]} 17. c5 {[%clk 0:01:12]}  dxc5 {[%clk 0:01:38]} 18. b5 {[%clk 0:01:12]}  O-O {[%clk 0:01:26]} 19. Qb3 {[%clk 0:00:55]}  axb5 {[%clk 0:01:16]} 20. Nxb5 {[%clk 0:00:53]}  Bxb5 {[%clk 0:00:58]} 21. Bxb5 {[%clk 0:00:54]}  c6 {[%clk 0:00:52]} 22. d6 {[%clk 0:00:54]}  Qd8 {[%clk 0:00:47]} 23. Be2 {[%clk 0:00:44]}  b5 {[%clk 0:00:35]} 24. Nf5 {[%clk 0:00:44]}  c4 {[%clk 0:00:35]} 25. Ne7+ {[%clk 0:00:41]}  Qxe7 {[%clk 0:00:23]} 26. dxe7 {[%clk 0:00:42]}  cxb3 {[%clk 0:00:23]} 27. exf8=Q+ {[%clk 0:00:42]}  Kxf8 {[%clk 0:00:24]} 28. Rc1 {[%clk 0:00:39]}  c5 {[%clk 0:00:17]} 29. Bxb5 {[%clk 0:00:38]}  Ng4 {[%clk 0:00:16]} 30. Rhf1 {[%clk 0:00:36]}  f6 {[%clk 0:00:08]} 31. Bc4 {[%clk 0:00:35]}  Nf7 {[%clk 0:00:06]} 32. Bxb3 {[%clk 0:00:30]}  Nfe5 {[%clk 0:00:06]} 33. Bd5 {[%clk 0:00:30]}  Nd3 {[%clk 0:00:05]} 34. Bxa8 {[%clk 0:00:29]}  Nxc1 {[%clk 0:00:05]} 35. Rxc1 {[%clk 0:00:29]} 1-0


[Site "https://www.chess.com"]

[Event "Titled Tuesday Blitz June 15 2021"]
[White "Khanin, Semen"]
[Black "Sargsyan, Anna M."]
[WhiteFideId "4111990"]
[BlackFideId "13308130"]
[WhiteElo "2521"]
[BlackElo "2263"]
[Result "1-0"]
[Round "02"]
[TimeControl "180+1"]
[Date "2021.06.15"]
[WhiteClock "0:00:56"]
[BlackClock "0:00:10"]

1. e4 {[%clk 0:03:00]}  c6 {[%clk 0:03:00]} 2. Nf3 {[%clk 0:02:57]}  d5 {[%clk 0:03:01]} 3. d3 {[%clk 0:02:57]}  Bg4 {[%clk 0:03:00]} 4. h3 {[%clk 0:02:56]}  dxe4 {[%clk 0:02:58]} 5. hxg4 {[%clk 0:02:53]}  exf3 {[%clk 0:02:58]} 6. Qxf3 {[%clk 0:02:54]}  Nd7 {[%clk 0:02:58]} 7. Nc3 {[%clk 0:02:53]}  e6 {[%clk 0:02:56]} 8. Bd2 {[%clk 0:02:49]}  Bd6 {[%clk 0:02:51]} 9. O-O-O {[%clk 0:02:48]}  Ne5 {[%clk 0:02:50]} 10. Qh3 {[%clk 0:02:46]}  Qb6 {[%clk 0:02:44]} 11. Ne4 {[%clk 0:02:44]}  Bc7 {[%clk 0:02:42]} 12. Bc3 {[%clk 0:02:40]}  Nf6 {[%clk 0:02:37]} 13. Nxf6+ {[%clk 0:02:36]}  gxf6 {[%clk 0:02:37]} 14. f4 {[%clk 0:02:33]}  Nd7 {[%clk 0:02:31]} 15. f5 {[%clk 0:02:11]}  Bf4+ {[%clk 0:02:26]} 16. Kb1 {[%clk 0:02:11]}  e5 {[%clk 0:02:26]} 17. Qh5 {[%clk 0:01:55]}  Nc5 {[%clk 0:02:05]} 18. b3 {[%clk 0:01:53]}  a5 {[%clk 0:02:05]} 19. d4 {[%clk 0:01:53]}  Ne4 {[%clk 0:01:58]} 20. Bb2 {[%clk 0:01:53]}  Ng3 {[%clk 0:01:39]} 21. Qh4 {[%clk 0:01:48]}  Nxh1 {[%clk 0:01:38]} 22. Qxf6 {[%clk 0:01:48]}  Rg8 {[%clk 0:01:18]} 23. dxe5 {[%clk 0:01:41]}  Rd8 {[%clk 0:01:09]} 24. Bd3 {[%clk 0:01:19]}  Nf2 {[%clk 0:00:49]} 25. e6 {[%clk 0:01:19]}  fxe6 {[%clk 0:00:15]} 26. Qxe6+ {[%clk 0:01:18]}  Kf8 {[%clk 0:00:16]} 27. Re1 {[%clk 0:01:02]}  Qc7 {[%clk 0:00:16]} 28. Ba3+ {[%clk 0:01:02]}  Bd6 {[%clk 0:00:12]} 29. Qf6+ {[%clk 0:01:01]}  Qf7 {[%clk 0:00:11]} 30. Bxd6+ {[%clk 0:00:56]}  Rxd6 {[%clk 0:00:10]} 31. Qxd6+ {[%clk 0:00:56]}  Kg7 {[%clk 0:00:10]} 32. Qd4+ {[%clk 0:00:56]} 1-0


[Site "https://www.chess.com"]